[Event "Early-Titled-Tuesday-Blitz-October-03-2023"]
[Site "Chess.com"]
[Date "2023.10.03"]
[Round "7"]
[White "Frolyanov_D"]
[Black "FairChess_on_YouTube"]
[Result "1/2-1/2"]
[WhiteElo "2680"]
[BlackElo "3048"]
[TimeControl "180+1"]
[EndTime "9:20:50 PDT"]
[Termination "Game drawn - insufficient material"]

1. d4 {[%clk 0:03:00.9]} 1... Nf6 {[%clk 0:02:53.7]} 2. c4 {[%clk 0:03:00.9]}
2... d6 {[%clk 0:02:53.8]} 3. Nf3 {[%clk 0:03:00.2]} 3... g6 {[%clk 0:02:52.7]}
4. Nc3 {[%clk 0:02:59.8]} 4... Bf5 {[%clk 0:02:52.5]} 5. g3 {[%clk 0:02:56]}
5... Bg7 {[%clk 0:02:52.2]} 6. Bg2 {[%clk 0:02:56.2]} 6... Ne4 {[%clk
0:02:52.6]} 7. Nh4 {[%clk 0:02:48.6]} 7... Nxc3 {[%clk 0:02:51.7]} 8. bxc3
{[%clk 0:02:49.5]} 8... Bc8 {[%clk 0:02:51.7]} 9. O-O {[%clk 0:02:43.8]} 9...
O-O {[%clk 0:02:51.5]} 10. Rb1 {[%clk 0:02:35.1]} 10... Nc6 {[%clk 0:02:48.4]}
11. f4 {[%clk 0:02:29.6]} 11... e5 {[%clk 0:02:25.7]} 12. f5 {[%clk 0:02:05.8]}
12... exd4 {[%clk 0:02:18.7]} 13. cxd4 {[%clk 0:02:06.7]} 13... Bxd4+ {[%clk
0:01:43.8]} 14. Kh1 {[%clk 0:02:05.5]} 14... Bf6 {[%clk 0:01:44.4]} 15. Bh6
{[%clk 0:01:58.6]} 15... Re8 {[%clk 0:01:38.3]} 16. Bd5 {[%clk 0:01:40.4]} 16...
g5 {[%clk 0:01:32.9]} 17. e4 {[%clk 0:00:59.1]} 17... Ne5 {[%clk 0:01:28.3]} 18.
Nf3 {[%clk 0:00:52.3]} 18... c6 {[%clk 0:00:57.5]} 19. Nxe5 {[%clk 0:00:47.1]}
19... Rxe5 {[%clk 0:00:50.1]} 20. Bxf7+ {[%clk 0:00:38.1]} 20... Kxf7 {[%clk
0:00:51]} 21. Qh5+ {[%clk 0:00:38.2]} 21... Kg8 {[%clk 0:00:50.2]} 22. h4 {[%clk
0:00:37.8]} 22... Qe8 {[%clk 0:00:43.6]} 23. Qxe8+ {[%clk 0:00:18.9]} 23... Rxe8
{[%clk 0:00:43]} 24. hxg5 {[%clk 0:00:19.8]} 24... Be5 {[%clk 0:00:39.8]} 25. f6
{[%clk 0:00:20.3]} 25... Kf7 {[%clk 0:00:39.5]} 26. Bg7 {[%clk 0:00:18.8]} 26...
b6 {[%clk 0:00:38]} 27. Kg2 {[%clk 0:00:18.6]} 27... Ba6 {[%clk 0:00:20]} 28.
Rh1 {[%clk 0:00:18.6]} 28... Bxc4 {[%clk 0:00:18.9]} 29. Rxh7 {[%clk 0:00:17.3]}
29... Bd3 {[%clk 0:00:19.5]} 30. Re1 {[%clk 0:00:12.9]} 30... Bc3 {[%clk
0:00:20.1]} 31. Bh6+ {[%clk 0:00:11.8]} 31... Ke6 {[%clk 0:00:16.3]} 32. Re3
{[%clk 0:00:11.3]} 32... Bc2 {[%clk 0:00:16.7]} 33. f7 {[%clk 0:00:08.5]} 33...
Bd4 {[%clk 0:00:10.3]} 34. fxe8=Q+ {[%clk 0:00:07.5]} 34... Rxe8 {[%clk
0:00:11.2]} 35. Re2 {[%clk 0:00:07.2]} 35... Bd3 {[%clk 0:00:11.6]} 36. Re1
{[%clk 0:00:06.9]} 36... c5 {[%clk 0:00:11.6]} 37. g6 {[%clk 0:00:06.3]} 37...
Kf6 {[%clk 0:00:10.9]} 38. g7 {[%clk 0:00:05.7]} 38... Bc4 {[%clk 0:00:09.4]}
39. Rh8 {[%clk 0:00:05.9]} 39... Rg8 {[%clk 0:00:08.9]} 40. Rf1+ {[%clk
0:00:05.9]} 40... Kg6 {[%clk 0:00:09.1]} 41. Rf8 {[%clk 0:00:06.7]} 41... Rxg7
{[%clk 0:00:08.6]} 42. Bxg7 {[%clk 0:00:06.5]} 42... Bxg7 {[%clk 0:00:09.5]} 43.
Ra8 {[%clk 0:00:03.8]} 43... Bxa2 {[%clk 0:00:08.8]} 44. Rhd8 {[%clk 0:00:03.1]}
44... Be5 {[%clk 0:00:08.1]} 45. Rxa7 {[%clk 0:00:03.4]} 45... Bb1 {[%clk
0:00:08.8]} 46. Rad7 {[%clk 0:00:03.6]} 46... Bxe4+ {[%clk 0:00:08.5]} 47. Kf1
{[%clk 0:00:04]} 47... Kf5 {[%clk 0:00:06.5]} 48. Rxd6 {[%clk 0:00:04.4]} 48...
Bxd6 {[%clk 0:00:06.8]} 49. Rxd6 {[%clk 0:00:05.3]} 49... b5 {[%clk 0:00:07.5]}
50. Ke2 {[%clk 0:00:05.4]} 50... b4 {[%clk 0:00:06.5]} 51. Kd2 {[%clk
0:00:05.3]} 51... c4 {[%clk 0:00:06.9]} 52. Rd8 {[%clk 0:00:04.5]} 52... c3+
{[%clk 0:00:07.2]} 53. Kc1 {[%clk 0:00:04.9]} 53... b3 {[%clk 0:00:07.1]} 54.
Rb8 {[%clk 0:00:05.5]} 54... Bc2 {[%clk 0:00:06.8]} 55. Rb4 {[%clk 0:00:04.3]}
55... Ke5 {[%clk 0:00:06.4]} 56. g4 {[%clk 0:00:04.4]} 56... Kd5 {[%clk
0:00:07]} 57. g5 {[%clk 0:00:04.9]} 57... Kc5 {[%clk 0:00:07.1]} 58. Rb8 {[%clk
0:00:05]} 58... Kc4 {[%clk 0:00:07.7]} 59. Rb7 {[%clk 0:00:05.1]} 59... Be4
{[%clk 0:00:07.6]} 60. Rb6 {[%clk 0:00:05.1]} 60... Bf5 {[%clk 0:00:05.5]} 61.
g6 {[%clk 0:00:04.8]} 61... b2+ {[%clk 0:00:04.7]} 62. Rxb2 {[%clk 0:00:04.6]}
62... cxb2+ {[%clk 0:00:05.6]} 63. Kxb2 {[%clk 0:00:05]} 63... Bxg6 {[%clk
0:00:06.3]} 1/2-1/2

[Event "Early-Titled-Tuesday-Blitz-October-03-2023"]
[Site "Chess.com"]
[Date "2023.10.03"]
[Round "7"]
[White "Herzog2012"]
[Black "Quattroporte300"]
[Result "1-0"]
[WhiteElo "2515"]
[BlackElo "2378"]
[TimeControl "180+1"]
[EndTime "9:20:54 PDT"]
[Termination "Herzog2012 won on time"]

1. e4 {[%clk 0:03:00.9]} 1... c5 {[%clk 0:02:58.1]} 2. Nf3 {[%clk 0:03:00.9]}
2... d6 {[%clk 0:02:58.5]} 3. d4 {[%clk 0:03:00.6]} 3... cxd4 {[%clk 0:02:59.1]}
4. Nxd4 {[%clk 0:03:01.5]} 4... Nf6 {[%clk 0:02:59.5]} 5. Nc3 {[%clk 0:03:01.8]}
5... Nc6 {[%clk 0:02:53.9]} 6. Bg5 {[%clk 0:03:00.9]} 6... e6 {[%clk 0:02:51.9]}
7. Qd2 {[%clk 0:03:00.2]} 7... a6 {[%clk 0:02:51.6]} 8. O-O-O {[%clk 0:02:53.5]}
8... Be7 {[%clk 0:02:51.3]} 9. f4 {[%clk 0:02:49.6]} 9... Bd7 {[%clk 0:02:50.5]}
10. Be2 {[%clk 0:02:32.4]} 10... Rc8 {[%clk 0:02:42.5]} 11. Bf3 {[%clk
0:02:15.6]} 11... O-O {[%clk 0:02:19.7]} 12. Qe3 {[%clk 0:01:54.5]} 12... Qc7
{[%clk 0:02:12.2]} 13. Nxc6 {[%clk 0:01:51.2]} 13... Bxc6 {[%clk 0:02:10.7]} 14.
e5 {[%clk 0:01:51.6]} 14... dxe5 {[%clk 0:02:04.4]} 15. fxe5 {[%clk 0:01:51]}
15... Nd5 {[%clk 0:01:57.9]} 16. Bxd5 {[%clk 0:01:37.1]} 16... Bxg5 {[%clk
0:01:52.7]} 17. Qxg5 {[%clk 0:01:33.3]} 17... Bxd5 {[%clk 0:01:52]} 18. Rhe1
{[%clk 0:01:23.9]} 18... b5 {[%clk 0:01:51.3]} 19. Re2 {[%clk 0:01:17.8]} 19...
Bc4 {[%clk 0:01:36.6]} 20. Red2 {[%clk 0:01:04.8]} 20... b4 {[%clk 0:01:37.1]}
21. Ne4 {[%clk 0:01:04.3]} 21... Kh8 {[%clk 0:01:25.4]} 22. b3 {[%clk
0:00:51.2]} 22... Qa5 {[%clk 0:00:54.6]} 23. Kb1 {[%clk 0:00:32.4]} 23... Bd5
{[%clk 0:00:34.6]} 24. Nf6 {[%clk 0:00:26.6]} 24... Rfd8 {[%clk 0:00:21.5]} 25.
Nxd5 {[%clk 0:00:06]} 25... Rxd5 {[%clk 0:00:17.4]} 26. Rxd5 {[%clk 0:00:05.8]}
26... exd5 {[%clk 0:00:18.3]} 27. Qf5 {[%clk 0:00:06.2]} 27... Qc5 {[%clk
0:00:17.7]} 28. Rc1 {[%clk 0:00:04.9]} 28... Kg8 {[%clk 0:00:13.6]} 29. e6
{[%clk 0:00:03.9]} 29... fxe6 {[%clk 0:00:13.9]} 30. Qxe6+ {[%clk 0:00:04.8]}
30... Kh8 {[%clk 0:00:14.3]} 31. Qxa6 {[%clk 0:00:05.2]} 31... d4 {[%clk
0:00:13.6]} 32. Qd3 {[%clk 0:00:03.3]} 32... h6 {[%clk 0:00:13.7]} 33. Rf1
{[%clk 0:00:03.1]} 33... Ra8 {[%clk 0:00:13.3]} 34. Qf5 {[%clk 0:00:03.3]} 34...
Qa7 {[%clk 0:00:10.1]} 35. Kc1 {[%clk 0:00:03]} 35... Qxa2 {[%clk 0:00:09.3]}
36. Qd3 {[%clk 0:00:03.4]} 36... Qa1+ {[%clk 0:00:09.3]} 37. Kd2 {[%clk
0:00:03.4]} 37... Qc3+ {[%clk 0:00:08.8]} 38. Qxc3 {[%clk 0:00:03.5]} 38...
dxc3+ {[%clk 0:00:09.3]} 39. Kd3 {[%clk 0:00:04]} 39... Rd8+ {[%clk 0:00:09.4]}
40. Kc4 {[%clk 0:00:04.4]} 40... Rd2 {[%clk 0:00:10]} 41. Kxb4 {[%clk
0:00:04.7]} 41... Rxc2 {[%clk 0:00:10.6]} 42. Rg1 {[%clk 0:00:03.4]} 42... g5
{[%clk 0:00:08.3]} 43. Kc4 {[%clk 0:00:03.7]} 43... Kg7 {[%clk 0:00:08.7]} 44.
Kd3 {[%clk 0:00:03.9]} 44... Ra2 {[%clk 0:00:04.9]} 45. Kxc3 {[%clk 0:00:04.3]}
45... Kf6 {[%clk 0:00:05.4]} 46. h3 {[%clk 0:00:04.8]} 46... Ke5 {[%clk
0:00:05.1]} 47. b4 {[%clk 0:00:04.2]} 47... Kf4 {[%clk 0:00:04.7]} 48. Kb3
{[%clk 0:00:04.5]} 48... Ra8 {[%clk 0:00:04.4]} 49. Rb1 {[%clk 0:00:03.4]} 49...
Kg3 {[%clk 0:00:04.7]} 50. Rb2 {[%clk 0:00:03.9]} 50... h5 {[%clk 0:00:04.2]}
51. Kc4 {[%clk 0:00:03.4]} 51... Rc8+ {[%clk 0:00:04.1]} 52. Kd5 {[%clk
0:00:03.3]} 52... Rd8+ {[%clk 0:00:03.8]} 53. Ke5 {[%clk 0:00:03.4]} 53... g4
{[%clk 0:00:03.1]} 54. hxg4 {[%clk 0:00:03.6]} 54... hxg4 {[%clk 0:00:04]} 55.
b5 {[%clk 0:00:03.7]} 55... Rb8 {[%clk 0:00:03.1]} 56. b6 {[%clk 0:00:03.5]}
56... Kh2 {[%clk 0:00:03]} 57. Kf4 {[%clk 0:00:03.4]} 57... g3 {[%clk
0:00:02.6]} 58. b7 {[%clk 0:00:03.8]} 58... Rf8+ {[%clk 0:00:01]} 59. Kg4 {[%clk
0:00:04.2]} 59... Rg8+ {[%clk 0:00:01.3]} 60. Kh4 {[%clk 0:00:03.3]} 60... Rh8+
{[%clk 0:00:01.5]} 61. Kg5 {[%clk 0:00:03.3]} 1-0

[Event "Early-Titled-Tuesday-Blitz-October-03-2023"]
[Site "Chess.com"]
[Date "2023.10.03"]
[Round "7"]
[White "PoXerStar"]
[Black "Malysch"]
[Result "1-0"]
[WhiteElo "2435"]
[BlackElo "2506"]
[TimeControl "180+1"]
[EndTime "9:21:02 PDT"]
[Termination "PoXerStar won on time"]

1. g3 {[%clk 0:02:58.9]} 1... Nf6 {[%clk 0:03:00.9]} 2. Bg2 {[%clk 0:02:58.5]}
2... d5 {[%clk 0:03:01.1]} 3. Nf3 {[%clk 0:02:59.4]} 3... Bg4 {[%clk 0:03:00.3]}
4. b3 {[%clk 0:02:58.5]} 4... c6 {[%clk 0:03:00.6]} 5. Bb2 {[%clk 0:02:59.1]}
5... Nbd7 {[%clk 0:03:00.8]} 6. d3 {[%clk 0:02:58.4]} 6... e6 {[%clk 0:03:01]}
7. Nbd2 {[%clk 0:02:59]} 7... Bd6 {[%clk 0:03:01]} 8. c4 {[%clk 0:02:59.3]} 8...
O-O {[%clk 0:03:00.2]} 9. h3 {[%clk 0:02:59.6]} 9... Bh5 {[%clk 0:02:59.6]} 10.
g4 {[%clk 0:02:59.2]} 10... Bg6 {[%clk 0:02:59.3]} 11. Nh4 {[%clk 0:02:57.6]}
11... e5 {[%clk 0:02:55.1]} 12. Nxg6 {[%clk 0:02:56.1]} 12... hxg6 {[%clk
0:02:56]} 13. cxd5 {[%clk 0:02:39]} 13... Nxd5 {[%clk 0:02:47]} 14. a3 {[%clk
0:02:25.1]} 14... Nf4 {[%clk 0:02:45.2]} 15. Bf3 {[%clk 0:02:24.3]} 15... Nc5
{[%clk 0:02:42.2]} 16. Ne4 {[%clk 0:02:13.9]} 16... Re8 {[%clk 0:02:39.4]} 17.
Nxd6 {[%clk 0:02:11.8]} 17... Qxd6 {[%clk 0:02:38.9]} 18. b4 {[%clk 0:02:06.7]}
18... Nce6 {[%clk 0:02:36.9]} 19. Qd2 {[%clk 0:01:48.7]} 19... Nd4 {[%clk
0:02:30]} 20. Bxd4 {[%clk 0:01:47.2]} 20... Qxd4 {[%clk 0:02:30.5]} 21. Rd1
{[%clk 0:01:46.5]} 21... Rad8 {[%clk 0:02:17.9]} 22. Be4 {[%clk 0:01:39.2]}
22... Qb6 {[%clk 0:02:04.5]} 23. e3 {[%clk 0:01:33.3]} 23... Nxd3+ {[%clk
0:01:47.9]} 24. Bxd3 {[%clk 0:01:34.2]} 24... e4 {[%clk 0:01:48.2]} 25. Qc3
{[%clk 0:01:31.9]} 25... exd3 {[%clk 0:01:39.1]} 26. Rxd3 {[%clk 0:01:30.8]}
26... Qa6 {[%clk 0:01:25.1]} 27. Rd2 {[%clk 0:00:49]} 27... Rxd2 {[%clk
0:00:44.3]} 28. Qxd2 {[%clk 0:00:47.5]} 28... Qxa3 {[%clk 0:00:42.2]} 29. O-O
{[%clk 0:00:47.5]} 29... Qb3 {[%clk 0:00:29.2]} 30. Ra1 {[%clk 0:00:45.1]} 30...
a6 {[%clk 0:00:27.1]} 31. Qd7 {[%clk 0:00:43.5]} 31... Re4 {[%clk 0:00:20.9]}
32. Qxb7 {[%clk 0:00:40.4]} 32... Rxb4 {[%clk 0:00:17.3]} 33. Qxc6 {[%clk
0:00:34.6]} 33... Rb6 {[%clk 0:00:15.2]} 34. Qc8+ {[%clk 0:00:32.2]} 34... Kh7
{[%clk 0:00:15.3]} 35. Qd8 {[%clk 0:00:26.4]} 35... Qb2 {[%clk 0:00:13.3]} 36.
Qh4+ {[%clk 0:00:24.8]} 36... Kg8 {[%clk 0:00:12.1]} 37. Rd1 {[%clk 0:00:19.2]}
37... Rb8 {[%clk 0:00:11.7]} 38. Rd8+ {[%clk 0:00:18.2]} 38... Rxd8 {[%clk
0:00:11.4]} 39. Qxd8+ {[%clk 0:00:19.1]} 39... Kh7 {[%clk 0:00:11.9]} 40. Qh4+
{[%clk 0:00:17.7]} 40... Kg8 {[%clk 0:00:11.2]} 41. Qd8+ {[%clk 0:00:18.6]}
41... Kh7 {[%clk 0:00:10.3]} 42. Qd7 {[%clk 0:00:16.6]} 42... Qf6 {[%clk
0:00:08.7]} 43. Qa4 {[%clk 0:00:15.6]} 43... Qb6 {[%clk 0:00:08.2]} 44. Qa2
{[%clk 0:00:14.2]} 44... f6 {[%clk 0:00:08.2]} 45. Qa4 {[%clk 0:00:11.4]} 45...
Qb5 {[%clk 0:00:08.1]} 46. Qc2 {[%clk 0:00:07.9]} 46... a5 {[%clk 0:00:07]} 47.
h4 {[%clk 0:00:08.5]} 47... Qb4 {[%clk 0:00:06.9]} 48. f3 {[%clk 0:00:06.7]}
48... Kh6 {[%clk 0:00:07.1]} 49. Kg2 {[%clk 0:00:05.1]} 49... a4 {[%clk
0:00:06.5]} 50. Kg3 {[%clk 0:00:04.2]} 50... a3 {[%clk 0:00:06.7]} 51. f4 {[%clk
0:00:04.4]} 51... Qb2 {[%clk 0:00:04.9]} 52. g5+ {[%clk 0:00:04.9]} 52... Kh7
{[%clk 0:00:04.3]} 53. Qe4 {[%clk 0:00:04.2]} 53... fxg5 {[%clk 0:00:04.6]} 54.
h5 {[%clk 0:00:04]} 54... gxf4+ {[%clk 0:00:02.6]} 55. exf4 {[%clk 0:00:04.9]}
55... Qb6 {[%clk 0:00:02.7]} 56. Qc2 {[%clk 0:00:01.8]} 56... Qe6 {[%clk
0:00:01.6]} 57. Kf3 {[%clk 0:00:02]} 57... Qd5+ {[%clk 0:00:01.3]} 58. Kg3
{[%clk 0:00:02.1]} 58... Qxh5 {[%clk 0:00:02.2]} 59. Qa2 {[%clk 0:00:01.5]}
59... Qa5 {[%clk 0:00:02.3]} 60. Kf3 {[%clk 0:00:01.9]} 60... Qa4 {[%clk
0:00:02.7]} 61. Kg4 {[%clk 0:00:01.2]} 61... Qa8 {[%clk 0:00:03.6]} 62. Qh2+
{[%clk 0:00:01.2]} 62... Kg8 {[%clk 0:00:02.2]} 63. Qa2+ {[%clk 0:00:02.1]} 1-0

[Event "Early-Titled-Tuesday-Blitz-October-03-2023"]
[Site "Chess.com"]
[Date "2023.10.03"]
[Round "7"]
[White "HrvojeZagreb"]
[Black "MaxLeto"]
[Result "0-1"]
[WhiteElo "2317"]
[BlackElo "2480"]
[TimeControl "180+1"]
[EndTime "9:21:05 PDT"]
[Termination "MaxLeto won by checkmate"]

1. f4 {[%clk 0:02:49.5]} 1... d5 {[%clk 0:03:00]} 2. b3 {[%clk 0:02:48.4]} 2...
c5 {[%clk 0:03:00.3]} 3. Bb2 {[%clk 0:02:49]} 3... Nc6 {[%clk 0:03:01]} 4. Nf3
{[%clk 0:02:49.4]} 4... Bf5 {[%clk 0:03:01.1]} 5. e3 {[%clk 0:02:49.8]} 5... e6
{[%clk 0:03:01.5]} 6. Bb5 {[%clk 0:02:49.9]} 6... Rc8 {[%clk 0:03:01.6]} 7. O-O
{[%clk 0:02:48.8]} 7... a6 {[%clk 0:03:01.6]} 8. Bxc6+ {[%clk 0:02:48.6]} 8...
Rxc6 {[%clk 0:03:02.5]} 9. d3 {[%clk 0:02:48.5]} 9... Nf6 {[%clk 0:03:01.5]} 10.
Nbd2 {[%clk 0:02:48.7]} 10... Be7 {[%clk 0:02:55.7]} 11. Qe1 {[%clk 0:02:45.5]}
11... h6 {[%clk 0:02:50.5]} 12. e4 {[%clk 0:02:43.6]} 12... Bh7 {[%clk
0:02:51.1]} 13. Qg3 {[%clk 0:02:29.9]} 13... O-O {[%clk 0:02:50.2]} 14. Ne5
{[%clk 0:02:18]} 14... Rc7 {[%clk 0:02:49.9]} 15. Ng4 {[%clk 0:01:13.8]} 15...
Nxg4 {[%clk 0:02:42.1]} 16. Qxg4 {[%clk 0:01:12.4]} 16... Bf6 {[%clk 0:02:43]}
17. e5 {[%clk 0:01:07.8]} 17... Be7 {[%clk 0:02:42.7]} 18. Rf3 {[%clk
0:00:58.6]} 18... Bf5 {[%clk 0:02:34.5]} 19. Qh5 {[%clk 0:00:53.9]} 19... Kh7
{[%clk 0:02:16.6]} 20. g4 {[%clk 0:00:43.9]} 20... Bg6 {[%clk 0:02:16.7]} 21.
Qh3 {[%clk 0:00:43.9]} 21... f5 {[%clk 0:02:17.4]} 22. g5 {[%clk 0:00:17.1]}
22... b5 {[%clk 0:02:13.6]} 23. Kh1 {[%clk 0:00:14.2]} 23... Qe8 {[%clk
0:02:11.7]} 24. Rg1 {[%clk 0:00:13.1]} 24... Bh5 {[%clk 0:02:12.2]} 25. Rfg3
{[%clk 0:00:12]} 25... Bd8 {[%clk 0:02:05.7]} 26. Nf3 {[%clk 0:00:07.2]} 26...
d4 {[%clk 0:01:55.7]} 27. g6+ {[%clk 0:00:07.2]} 27... Bxg6 {[%clk 0:01:42.5]}
28. Rxg6 {[%clk 0:00:08.1]} 28... Qxg6 {[%clk 0:01:43.2]} 29. Rxg6 {[%clk
0:00:08.6]} 29... Kxg6 {[%clk 0:01:44.1]} 30. Nh4+ {[%clk 0:00:07.6]} 30... Kh7
{[%clk 0:01:31.8]} 31. Qg3 {[%clk 0:00:06.2]} 31... g5 {[%clk 0:01:28.7]} 32.
Ng2 {[%clk 0:00:06.3]} 32... Rg7 {[%clk 0:01:27.4]} 33. Qh3 {[%clk 0:00:05.9]}
33... g4 {[%clk 0:01:23.9]} 34. Qg3 {[%clk 0:00:06]} 34... h5 {[%clk 0:01:24.3]}
35. Nh4 {[%clk 0:00:06.3]} 35... Rfg8 {[%clk 0:01:23.1]} 36. Bc1 {[%clk
0:00:06.6]} 36... Be7 {[%clk 0:01:21.9]} 37. Bd2 {[%clk 0:00:06.8]} 37... Rc8
{[%clk 0:01:21.4]} 38. Be1 {[%clk 0:00:07.2]} 38... Rc7 {[%clk 0:01:18.8]} 39.
Qg2 {[%clk 0:00:07]} 39... Rg8 {[%clk 0:01:18.9]} 40. Qe2 {[%clk 0:00:04.3]}
40... Rgc8 {[%clk 0:01:18.5]} 41. Qg2 {[%clk 0:00:04]} 41... c4 {[%clk
0:01:18.5]} 42. bxc4 {[%clk 0:00:04.9]} 42... bxc4 {[%clk 0:01:19.4]} 43. dxc4
{[%clk 0:00:05.4]} 43... Rxc4 {[%clk 0:01:20.1]} 44. Qb7 {[%clk 0:00:05.2]}
44... R8c7 {[%clk 0:01:20.1]} 45. Qxa6 {[%clk 0:00:05.5]} 45... R4c6 {[%clk
0:01:20.5]} 46. Qa4 {[%clk 0:00:05.2]} 46... Rxc2 {[%clk 0:01:18.8]} 47. Qe8
{[%clk 0:00:05.4]} 47... Bxh4 {[%clk 0:00:35.8]} 48. Qxh5+ {[%clk 0:00:05.2]}
48... Kg7 {[%clk 0:00:35]} 49. Bxh4 {[%clk 0:00:04.8]} 49... Rc1+ {[%clk
0:00:29.9]} 50. Kg2 {[%clk 0:00:05.1]} 50... R7c2+ {[%clk 0:00:30.3]} 51. Bf2
{[%clk 0:00:05.3]} 51... d3 {[%clk 0:00:21.9]} 52. Qg5+ {[%clk 0:00:05.4]} 52...
Kf7 {[%clk 0:00:21.7]} 53. Qh5+ {[%clk 0:00:05.6]} 53... Ke7 {[%clk 0:00:21.6]}
54. Qh7+ {[%clk 0:00:05.5]} 54... Kd8 {[%clk 0:00:21.9]} 55. Qg8+ {[%clk
0:00:05.4]} 55... Kc7 {[%clk 0:00:22.4]} 56. Qf7+ {[%clk 0:00:04.9]} 56... Kd8
{[%clk 0:00:13.1]} 57. Qf6+ {[%clk 0:00:04.7]} 57... Kc7 {[%clk 0:00:09.3]} 58.
Qf7+ {[%clk 0:00:04.5]} 58... Kb8 {[%clk 0:00:04.3]} 59. Qa7+ {[%clk 0:00:02.9]}
59... Kc8 {[%clk 0:00:04.3]} 60. Qa6+ {[%clk 0:00:02.9]} 60... Kc7 {[%clk
0:00:04.3]} 61. Qa7+ {[%clk 0:00:02.5]} 61... Kc6 {[%clk 0:00:04.6]} 62. Qa6+
{[%clk 0:00:02.5]} 62... Kd5 {[%clk 0:00:04.9]} 63. Qb7+ {[%clk 0:00:01.6]}
63... Kc4 {[%clk 0:00:04.9]} 64. Qc6+ {[%clk 0:00:01.4]} 64... Kb4 {[%clk
0:00:05.4]} 65. Qxe6 {[%clk 0:00:01.8]} 65... Kc3 {[%clk 0:00:05.8]} 66. Qb6
{[%clk 0:00:02.6]} 66... Kd2 {[%clk 0:00:05.8]} 67. Qa5+ {[%clk 0:00:03.5]}
67... Ke2 {[%clk 0:00:06.1]} 68. Qd5 {[%clk 0:00:04]} 68... d2 {[%clk
0:00:06.4]} 69. Qb5+ {[%clk 0:00:03.7]} 69... Rc4 {[%clk 0:00:05.1]} 70. Qa6
{[%clk 0:00:03.3]} 70... d1=Q {[%clk 0:00:05.5]} 71. Qb5 {[%clk 0:00:03.4]}
71... Qf1+ {[%clk 0:00:06]} 72. Kg3 {[%clk 0:00:03.6]} 72... Qxf2# {[%clk
0:00:06.6]} 0-1